[Event "*** Titled Tuesday Blitz"]
[Site "Chess.com"]
[Date "2021.03.30"]
[Round "8"]
[White "MarcoRiehle"]
[Black "Msb2"]
[Result "0-1"]
[WhiteElo "2713"]
[BlackElo "2923"]
[TimeControl "180+1"]
[EndTime "11:28:51 PDT"]
[Termination "Msb2 won by checkmate"]

1. e4 {[%clk 0:03:00.9]} 1... c6 {[%clk 0:03:00.4]} 2. c4 {[%clk 0:02:59.9]}
2... d5 {[%clk 0:02:59.4]} 3. cxd5 {[%clk 0:03:00.8]} 3... cxd5 {[%clk
0:03:00.2]} 4. exd5 {[%clk 0:03:01.7]} 4... Nf6 {[%clk 0:02:59.8]} 5. Nc3 {[%clk
0:03:02.2]} 5... Nxd5 {[%clk 0:02:52.6]} 6. Nf3 {[%clk 0:03:02.1]} 6... Nc6
{[%clk 0:02:52.2]} 7. Bb5 {[%clk 0:03:01.5]} 7... e6 {[%clk 0:02:44.1]} 8. O-O
{[%clk 0:03:00.7]} 8... Be7 {[%clk 0:02:44.2]} 9. d4 {[%clk 0:02:59.7]} 9... O-O
{[%clk 0:02:44.4]} 10. Re1 {[%clk 0:02:57.7]} 10... a6 {[%clk 0:02:19.5]} 11.
Bd3 {[%clk 0:02:55.9]} 11... Nf6 {[%clk 0:02:17.4]} 12. Ne5 {[%clk 0:02:38.9]}
12... Nxd4 {[%clk 0:02:10.2]} 13. Bg5 {[%clk 0:02:29.4]} 13... Nc6 {[%clk
0:01:59.1]} 14. Qf3 {[%clk 0:02:14.2]} 14... Qc7 {[%clk 0:01:42.5]} 15. Bf4
{[%clk 0:02:05.5]} 15... Bd6 {[%clk 0:01:32.8]} 16. Qg3 {[%clk 0:02:02.1]} 16...
Nh5 {[%clk 0:01:19.3]} 17. Qh4 {[%clk 0:02:00.5]} 17... g6 {[%clk 0:01:19.5]}
18. Nxc6 {[%clk 0:01:49.4]} 18... Nxf4 {[%clk 0:01:19.1]} 19. Ne4 {[%clk
0:01:29.6]} 19... f5 {[%clk 0:00:49.7]} 20. Nxd6 {[%clk 0:01:25.1]} 20... Qxd6
{[%clk 0:00:47.5]} 21. Ne7+ {[%clk 0:01:25.1]} 21... Kg7 {[%clk 0:00:46.6]} 22.
Bxf5 {[%clk 0:01:05.6]} 22... exf5 {[%clk 0:00:40.2]} 23. Rad1 {[%clk
0:01:04.3]} 23... Qb4 {[%clk 0:00:23]} 24. g3 {[%clk 0:00:36.6]} 24... Nd3
{[%clk 0:00:19.3]} 25. Nxf5+ {[%clk 0:00:36.6]} 25... Bxf5 {[%clk 0:00:18.8]}
26. Re7+ {[%clk 0:00:36.9]} 26... Rf7 {[%clk 0:00:18.6]} 27. Rxf7+ {[%clk
0:00:32.9]} 27... Kxf7 {[%clk 0:00:19.5]} 28. Qxh7+ {[%clk 0:00:33.2]} 28... Kf6
{[%clk 0:00:20.1]} 29. h4 {[%clk 0:00:24.6]} 29... Re8 {[%clk 0:00:19.9]} 30.
Kh2 {[%clk 0:00:19.3]} 30... Nxf2 {[%clk 0:00:14.9]} 31. Rf1 {[%clk 0:00:12.1]}
31... Ng4+ {[%clk 0:00:14.5]} 32. Kg1 {[%clk 0:00:09.7]} 32... Qc5+ {[%clk
0:00:13.6]} 33. Kh1 {[%clk 0:00:10]} 33... Qd5+ {[%clk 0:00:13.5]} 34. Kg1
{[%clk 0:00:10.5]} 34... Qd4+ {[%clk 0:00:08.8]} 35. Kh1 {[%clk 0:00:10.8]}
35... Qe4+ {[%clk 0:00:09.4]} 36. Kg1 {[%clk 0:00:11.4]} 36... Qe3+ {[%clk
0:00:10]} 37. Kg2 {[%clk 0:00:11.9]} 37... Qe2+ {[%clk 0:00:09.7]} 38. Kg1
{[%clk 0:00:11.5]} 38... Qh2# {[%clk 0:00:09.9]} 0-1

[Event "*** Titled Tuesday Blitz"]
[Site "Chess.com"]
[Date "2021.03.30"]
[Round "8"]
[White "LamaChampetre"]
[Black "BozeKat"]
[Result "1-0"]
[WhiteElo "2213"]
[BlackElo "2016"]
[TimeControl "180+1"]
[EndTime "11:28:51 PDT"]
[Termination "LamaChampetre won by resignation"]

1. d4 {[%clk 0:03:00.9]} 1... Nf6 {[%clk 0:02:59.6]} 2. c4 {[%clk 0:03:00.5]}
2... e6 {[%clk 0:02:59.2]} 3. Nf3 {[%clk 0:03:00.1]} 3... b6 {[%clk 0:02:58.6]}
4. g3 {[%clk 0:03:00.3]} 4... Bb7 {[%clk 0:02:58.8]} 5. Bg2 {[%clk 0:03:00.6]}
5... Bb4+ {[%clk 0:02:58.7]} 6. Nbd2 {[%clk 0:02:57.2]} 6... O-O {[%clk
0:02:57.5]} 7. O-O {[%clk 0:02:56.5]} 7... c5 {[%clk 0:02:56.2]} 8. a3 {[%clk
0:02:36.8]} 8... Bxd2 {[%clk 0:02:55.6]} 9. Qxd2 {[%clk 0:02:37.7]} 9... Ne4
{[%clk 0:02:50.8]} 10. Qc2 {[%clk 0:02:33.4]} 10... d5 {[%clk 0:02:49.3]} 11.
dxc5 {[%clk 0:02:23.6]} 11... bxc5 {[%clk 0:02:40.5]} 12. b4 {[%clk 0:02:14.4]}
12... cxb4 {[%clk 0:02:32.7]} 13. axb4 {[%clk 0:02:14.3]} 13... dxc4 {[%clk
0:02:29.3]} 14. Ng5 {[%clk 0:02:03.3]} 14... f5 {[%clk 0:02:13]} 15. Nxe4 {[%clk
0:02:00.8]} 15... fxe4 {[%clk 0:02:11.6]} 16. Bxe4 {[%clk 0:02:00.8]} 16... Bxe4
{[%clk 0:02:03.9]} 17. Qxe4 {[%clk 0:02:01.7]} 17... Qd5 {[%clk 0:01:54.6]} 18.
Qxd5 {[%clk 0:01:39.6]} 18... exd5 {[%clk 0:01:54.2]} 19. Rd1 {[%clk 0:01:39.6]}
19... Nc6 {[%clk 0:01:51.3]} 20. b5 {[%clk 0:01:31]} 20... Nb4 {[%clk
0:01:35.6]} 21. Ba3 {[%clk 0:01:28.8]} 21... a5 {[%clk 0:01:30.1]} 22. bxa6
{[%clk 0:01:20.4]} 22... Rfb8 {[%clk 0:01:24.7]} 23. Bxb4 {[%clk 0:01:19.2]}
23... Rxb4 {[%clk 0:01:25.6]} 24. Rxd5 {[%clk 0:01:19.1]} 24... Rb6 {[%clk
0:01:21.5]} 25. a7 {[%clk 0:01:14.3]} 25... Rb7 {[%clk 0:01:18.2]} 26. Rc5
{[%clk 0:01:12.9]} 26... Rbxa7 {[%clk 0:01:18]} 27. Rxa7 {[%clk 0:01:13.1]}
27... Rxa7 {[%clk 0:01:18.9]} 28. Rxc4 {[%clk 0:01:13.4]} 28... Ra1+ {[%clk
0:01:18.9]} 29. Kg2 {[%clk 0:01:13.4]} 29... Ra2 {[%clk 0:01:18.6]} 30. e4
{[%clk 0:01:13.1]} 30... g6 {[%clk 0:01:15]} 31. Rc7 {[%clk 0:01:12.8]} 31...
Ra5 {[%clk 0:01:10.2]} 32. f4 {[%clk 0:01:10.8]} 32... Ra3 {[%clk 0:01:09.9]}
33. e5 {[%clk 0:01:10.1]} 33... Re3 {[%clk 0:01:08.5]} 34. Kh3 {[%clk
0:01:09.9]} 34... h6 {[%clk 0:01:06.9]} 35. Kg4 {[%clk 0:01:07.7]} 35... Re2
{[%clk 0:01:01.3]} 36. h4 {[%clk 0:01:06.9]} 36... Re3 {[%clk 0:00:57.4]} 37. h5
{[%clk 0:01:03.4]} 37... g5 {[%clk 0:00:41]} 38. fxg5 {[%clk 0:01:00.3]} 38...
hxg5 {[%clk 0:00:40.5]} 39. Kf5 {[%clk 0:00:52.8]} 39... Rxg3 {[%clk 0:00:39.5]}
40. Kg6 {[%clk 0:00:53]} 40... Kf8 {[%clk 0:00:27]} 41. h6 {[%clk 0:00:53]}
41... g4 {[%clk 0:00:22]} 42. h7 {[%clk 0:00:52.7]} 42... Rh3 {[%clk 0:00:21.6]}
43. Rc8+ {[%clk 0:00:47.9]} 43... Ke7 {[%clk 0:00:21]} 44. h8=Q {[%clk
0:00:47.5]} 44... Rxh8 {[%clk 0:00:19.5]} 45. Rxh8 {[%clk 0:00:48.4]} 45... g3
{[%clk 0:00:18.5]} 46. Kf5 {[%clk 0:00:46.6]} 46... Kf7 {[%clk 0:00:15.5]} 47.
Rh7+ {[%clk 0:00:45.2]} 47... Kg8 {[%clk 0:00:15.1]} 48. Rh5 {[%clk 0:00:44.1]}
48... Kf7 {[%clk 0:00:13.6]} 49. Rg5 {[%clk 0:00:44.2]} 1-0

[Event "*** Titled Tuesday Blitz"]
[Site "Chess.com"]
[Date "2021.03.30"]
[Round "8"]
[White "Iskusnyh"]
[Black "chessdjw"]
[Result "1-0"]
[WhiteElo "2651"]
[BlackElo "2763"]
[TimeControl "180+1"]
[EndTime "11:28:52 PDT"]
[Termination "Iskusnyh won by checkmate"]

1. d4 {[%clk 0:03:00.9]} 1... Nf6 {[%clk 0:03:00]} 2. c4 {[%clk 0:03:00.8]} 2...
g6 {[%clk 0:03:00.3]} 3. g3 {[%clk 0:03:00.9]} 3... Bg7 {[%clk 0:03:00.3]} 4.
Bg2 {[%clk 0:03:01.5]} 4... O-O {[%clk 0:03:00.9]} 5. Nc3 {[%clk 0:03:02]} 5...
Nc6 {[%clk 0:03:01.2]} 6. Nf3 {[%clk 0:02:55]} 6... d5 {[%clk 0:03:00]} 7. cxd5
{[%clk 0:02:43.8]} 7... Nxd5 {[%clk 0:03:00.9]} 8. O-O {[%clk 0:02:41.9]} 8...
e5 {[%clk 0:03:01.4]} 9. Nxd5 {[%clk 0:02:34.1]} 9... e4 {[%clk 0:03:01.8]} 10.
Ne1 {[%clk 0:01:56]} 10... Qxd5 {[%clk 0:03:00.8]} 11. e3 {[%clk 0:01:56.2]}
11... Be6 {[%clk 0:02:43]} 12. Bd2 {[%clk 0:01:54.8]} 12... a5 {[%clk
0:02:41.2]} 13. Nd3 {[%clk 0:01:53.7]} 13... Bf5 {[%clk 0:02:13.3]} 14. g4
{[%clk 0:01:28.4]} 14... Bc8 {[%clk 0:02:13.1]} 15. Nf4 {[%clk 0:01:27.4]} 15...
Qg5 {[%clk 0:02:08.4]} 16. h3 {[%clk 0:01:17.4]} 16... Re8 {[%clk 0:01:29.2]}
17. Rc1 {[%clk 0:01:16.1]} 17... Qe7 {[%clk 0:01:21.2]} 18. Qc2 {[%clk
0:00:56.2]} 18... Qd6 {[%clk 0:00:54.7]} 19. d5 {[%clk 0:00:51.6]} 19... Nb4
{[%clk 0:00:53.5]} 20. Qxc7 {[%clk 0:00:51]} 20... Qxc7 {[%clk 0:00:51.7]} 21.
Rxc7 {[%clk 0:00:51.1]} 21... Bxb2 {[%clk 0:00:48.1]} 22. Rb1 {[%clk 0:00:32.1]}
22... Be5 {[%clk 0:00:47.1]} 23. Rc4 {[%clk 0:00:32.2]} 23... Nxa2 {[%clk
0:00:28.5]} 24. Rxe4 {[%clk 0:00:29.4]} 24... f5 {[%clk 0:00:23.8]} 25. Rc4
{[%clk 0:00:28.5]} 25... fxg4 {[%clk 0:00:21.7]} 26. hxg4 {[%clk 0:00:28.2]}
26... Bxg4 {[%clk 0:00:20.7]} 27. Nd3 {[%clk 0:00:27.1]} 27... Bd6 {[%clk
0:00:16.1]} 28. Rxg4 {[%clk 0:00:25.4]} 28... Rac8 {[%clk 0:00:14.7]} 29. Ra4
{[%clk 0:00:24.1]} 29... Rc2 {[%clk 0:00:14.7]} 30. Be1 {[%clk 0:00:23.1]} 30...
b6 {[%clk 0:00:13.2]} 31. Rxb6 {[%clk 0:00:22.1]} 31... Nc1 {[%clk 0:00:11.4]}
32. Nxc1 {[%clk 0:00:21.1]} 32... Rxc1 {[%clk 0:00:12.3]} 33. Rxd6 {[%clk
0:00:21.4]} 33... Rxe1+ {[%clk 0:00:12.9]} 34. Kh2 {[%clk 0:00:21.7]} 34... Re2
{[%clk 0:00:13.2]} 35. Rf4 {[%clk 0:00:21]} 35... g5 {[%clk 0:00:13.1]} 36. Rf5
{[%clk 0:00:20.6]} 36... h6 {[%clk 0:00:12]} 37. Rxh6 {[%clk 0:00:20.1]} 37...
Kg7 {[%clk 0:00:12.6]} 38. Rhf6 {[%clk 0:00:19.4]} 38... Rh8+ {[%clk 0:00:12.7]}
39. Kg3 {[%clk 0:00:19.1]} 39... a4 {[%clk 0:00:13.4]} 40. Rf7+ {[%clk
0:00:19.2]} 40... Kg6 {[%clk 0:00:14]} 41. R5f6+ {[%clk 0:00:19.5]} 41... Kh5
{[%clk 0:00:14]} 42. Bf3+ {[%clk 0:00:20.1]} 42... g4 {[%clk 0:00:14.9]} 43.
Bxg4+ {[%clk 0:00:20.4]} 43... Kg5 {[%clk 0:00:15.8]} 44. f4# {[%clk 0:00:21]}
1-0

[Event "*** Titled Tuesday Blitz"]
[Site "Chess.com"]
[Date "2021.03.30"]
[Round "8"]
[White "steka121"]
[Black "Danny_Billiards"]
[Result "1-0"]
[WhiteElo "2425"]
[BlackElo "2574"]
[TimeControl "180+1"]
[EndTime "11:28:53 PDT"]
[Termination "steka121 won by resignation"]

1. e4 {[%clk 0:02:58.9]} 1... c5 {[%clk 0:02:57.3]} 2. b3 {[%clk 0:02:59]} 2...
e6 {[%clk 0:02:53.6]} 3. Bb2 {[%clk 0:02:57.8]} 3... d5 {[%clk 0:02:54.1]} 4.
Bb5+ {[%clk 0:02:57.3]} 4... Bd7 {[%clk 0:02:53.8]} 5. Bxd7+ {[%clk 0:02:56.4]}
5... Qxd7 {[%clk 0:02:54.7]} 6. exd5 {[%clk 0:02:55.7]} 6... exd5 {[%clk
0:02:55.6]} 7. Qe2+ {[%clk 0:02:52]} 7... Qe7 {[%clk 0:02:38.6]} 8. Nc3 {[%clk
0:02:49.7]} 8... Qxe2+ {[%clk 0:02:35]} 9. Ngxe2 {[%clk 0:02:49.8]} 9... Nf6
{[%clk 0:02:35.9]} 10. d4 {[%clk 0:02:38.2]} 10... cxd4 {[%clk 0:02:24.1]} 11.
Nxd4 {[%clk 0:02:26.6]} 11... Nc6 {[%clk 0:01:59.7]} 12. O-O-O {[%clk
0:02:20.3]} 12... Nxd4 {[%clk 0:01:41]} 13. Rxd4 {[%clk 0:02:19]} 13... O-O-O
{[%clk 0:01:41.9]} 14. Rhd1 {[%clk 0:01:57.3]} 14... Bc5 {[%clk 0:01:34]} 15.
Rf4 {[%clk 0:01:56.8]} 15... Rhe8 {[%clk 0:01:26.1]} 16. Rf5 {[%clk 0:01:33.8]}
16... Bb6 {[%clk 0:00:50.4]} 17. Na4 {[%clk 0:01:17.2]} 17... Bc7 {[%clk
0:00:37.7]} 18. Bxf6 {[%clk 0:01:15.1]} 18... gxf6 {[%clk 0:00:38.6]} 19. Rdxd5
{[%clk 0:01:09.5]} 19... Rxd5 {[%clk 0:00:32.1]} 20. Rxd5 {[%clk 0:01:09.4]}
20... Bxh2 {[%clk 0:00:26]} 21. Rf5 {[%clk 0:00:56.1]} 21... Be5 {[%clk
0:00:20.7]} 22. Nc5 {[%clk 0:00:55.8]} 22... Bc3 {[%clk 0:00:17.6]} 23. Nd3
{[%clk 0:00:52.6]} 23... b6 {[%clk 0:00:18]} 24. Rf4 {[%clk 0:00:48.1]} 24...
Kb7 {[%clk 0:00:17.2]} 25. Rc4 {[%clk 0:00:48]} 25... Be5 {[%clk 0:00:13.5]} 26.
Kd1 {[%clk 0:00:47.8]} 26... Rg8 {[%clk 0:00:13.4]} 27. g3 {[%clk 0:00:47.6]}
27... Rg6 {[%clk 0:00:13.1]} 28. Rh4 {[%clk 0:00:47.2]} 28... h6 {[%clk
0:00:12.9]} 29. Rh5 {[%clk 0:00:47.2]} 29... Bd6 {[%clk 0:00:12]} 30. Ke2 {[%clk
0:00:46.7]} 30... Kc6 {[%clk 0:00:12.3]} 31. c4 {[%clk 0:00:46.6]} 31... Kd7
{[%clk 0:00:12.8]} 32. a4 {[%clk 0:00:46]} 32... Ke6 {[%clk 0:00:13.3]} 33. a5
{[%clk 0:00:46.3]} 33... f5 {[%clk 0:00:13.4]} 34. axb6 {[%clk 0:00:45.8]} 34...
axb6 {[%clk 0:00:14.3]} 35. Rh1 {[%clk 0:00:45]} 35... Rf6 {[%clk 0:00:13.6]}
36. Kf3 {[%clk 0:00:45]} 36... Rg6 {[%clk 0:00:13.6]} 37. Ra1 {[%clk 0:00:44.2]}
37... Rg4 {[%clk 0:00:12.5]} 38. Ra6 {[%clk 0:00:43.9]} 38... Rd4 {[%clk
0:00:12.6]} 39. Ke2 {[%clk 0:00:41.6]} 39... Bc7 {[%clk 0:00:07.8]} 40. c5
{[%clk 0:00:41.5]} 40... Kd7 {[%clk 0:00:05.7]} 41. cxb6 {[%clk 0:00:41.7]}
41... Rd6 {[%clk 0:00:06.3]} 42. Ra7 {[%clk 0:00:41.2]} 42... Rxb6 {[%clk
0:00:06.3]} 43. Ne5+ {[%clk 0:00:41.2]} 43... Kd6 {[%clk 0:00:05.9]} 44. Nc4+
{[%clk 0:00:41.5]} 44... Kd7 {[%clk 0:00:06.2]} 45. Nxb6+ {[%clk 0:00:42.4]} 1-0

[Event "*** Titled Tuesday Blitz"]
[Site "Chess.com"]
[Date "2021.03.30"]
[Round "8"]
[White "Eternauta2400"]
[Black "AlexSuv"]
[Result "1-0"]
[WhiteElo "2404"]
[BlackElo "2539"]
[TimeControl "180+1"]
[EndTime "11:28:53 PDT"]
[Termination "Eternauta2400 won by resignation"]

1. e4 {[%clk 0:03:00.9]} 1... c5 {[%clk 0:02:55.7]} 2. Nf3 {[%clk 0:02:59.8]}
2... e6 {[%clk 0:02:55.2]} 3. d4 {[%clk 0:02:59]} 3... cxd4 {[%clk 0:02:56.1]}
4. Nxd4 {[%clk 0:02:57.8]} 4... Nc6 {[%clk 0:02:56.4]} 5. Nc3 {[%clk 0:02:49.6]}
5... Qc7 {[%clk 0:02:55.8]} 6. Be3 {[%clk 0:02:45.4]} 6... a6 {[%clk 0:02:53.5]}
7. Qd2 {[%clk 0:02:41.1]} 7... Nf6 {[%clk 0:02:52.3]} 8. O-O-O {[%clk 0:02:37]}
8... Bb4 {[%clk 0:02:51.3]} 9. f3 {[%clk 0:02:36]} 9... Ne5 {[%clk 0:02:51]} 10.
Bf4 {[%clk 0:02:32.5]} 10... d6 {[%clk 0:02:44.2]} 11. Nb3 {[%clk 0:02:32.5]}
11... O-O {[%clk 0:02:26.8]} 12. h4 {[%clk 0:02:30.8]} 12... b5 {[%clk
0:02:20.9]} 13. h5 {[%clk 0:02:27]} 13... h6 {[%clk 0:02:14.5]} 14. Bxh6 {[%clk
0:02:20.3]} 14... gxh6 {[%clk 0:02:14.4]} 15. Qxh6 {[%clk 0:02:21.2]} 15... Nh7
{[%clk 0:01:55.9]} 16. Rh3 {[%clk 0:02:15.5]} 16... f6 {[%clk 0:01:51]} 17. Rg3+
{[%clk 0:02:10]} 17... Kh8 {[%clk 0:01:51]} 18. f4 {[%clk 0:02:10.5]} 18... Nc4
{[%clk 0:01:38]} 19. Nd4 {[%clk 0:02:01.1]} 19... Rg8 {[%clk 0:01:30.8]} 20.
Rxg8+ {[%clk 0:01:57.7]} 20... Kxg8 {[%clk 0:01:31.7]} 21. Qg6+ {[%clk
0:01:45.7]} 21... Qg7 {[%clk 0:01:24.5]} 22. Qe8+ {[%clk 0:01:44.3]} 22... Qf8
{[%clk 0:01:19.9]} 23. Qg6+ {[%clk 0:01:40.1]} 23... Kh8 {[%clk 0:01:18.4]} 24.
Bd3 {[%clk 0:01:35.7]} 24... Bxc3 {[%clk 0:01:06.4]} 25. bxc3 {[%clk 0:01:33.2]}
25... Ra7 {[%clk 0:00:55.1]} 26. h6 {[%clk 0:01:28]} 26... d5 {[%clk 0:00:31.9]}
27. Bxc4 {[%clk 0:01:23.8]} 27... dxc4 {[%clk 0:00:28.4]} 28. e5 {[%clk
0:01:17.3]} 28... Rd7 {[%clk 0:00:19.2]} 29. Rg1 {[%clk 0:01:12.3]} 29... Rxd4
{[%clk 0:00:15.7]} 30. cxd4 {[%clk 0:01:08.8]} 30... c3 {[%clk 0:00:16.1]} 31.
Kd1 {[%clk 0:01:04.3]} 31... Bb7 {[%clk 0:00:15.6]} 32. g4 {[%clk 0:00:56.9]}
32... Bd5 {[%clk 0:00:12.5]} 33. f5 {[%clk 0:00:49.2]} 33... fxe5 {[%clk
0:00:11.2]} 34. dxe5 {[%clk 0:00:43.2]} 34... Bf3+ {[%clk 0:00:11.3]} 35. Ke1
{[%clk 0:00:36.6]} 35... Be4 {[%clk 0:00:11.3]} 36. Qxe6 {[%clk 0:00:32.4]}
36... Ng5 {[%clk 0:00:09.4]} 37. Qf6+ {[%clk 0:00:28.9]} 37... Qxf6 {[%clk
0:00:09.2]} 38. exf6 {[%clk 0:00:29.8]} 38... Nf3+ {[%clk 0:00:10.1]} 39. Kf2
{[%clk 0:00:30]} 39... Nxg1 {[%clk 0:00:11]} 40. f7 {[%clk 0:00:23]} 40... Nh3+
{[%clk 0:00:10.4]} 41. Kg3 {[%clk 0:00:21.7]} 1-0

[Event "*** Titled Tuesday Blitz"]
[Site "Chess.com"]
[Date "2021.03.30"]
[Round "8"]
[White "zala02"]
[Black "Mrlammy"]
[Result "1-0"]
[WhiteElo "2149"]
[BlackElo "2283"]
[TimeControl "180+1"]
[EndTime "11:28:53 PDT"]
[Termination "zala02 won by checkmate"]

1. e4 {[%clk 0:03:00.9]} 1... e6 {[%clk 0:03:00]} 2. d4 {[%clk 0:03:00]} 2... d5
{[%clk 0:02:59.8]} 3. Nd2 {[%clk 0:02:56.4]} 3... c5 {[%clk 0:02:58.3]} 4. exd5
{[%clk 0:02:51.9]} 4... exd5 {[%clk 0:02:59.2]} 5. dxc5 {[%clk 0:02:48.3]} 5...
Bxc5 {[%clk 0:03:00.1]} 6. Ngf3 {[%clk 0:02:48.4]} 6... Nf6 {[%clk 0:02:59.6]}
7. Nb3 {[%clk 0:02:47.8]} 7... Bb6 {[%clk 0:02:59.7]} 8. Bb5+ {[%clk 0:02:44.5]}
8... Nc6 {[%clk 0:02:56.7]} 9. O-O {[%clk 0:02:44.3]} 9... O-O {[%clk
0:02:55.8]} 10. Re1 {[%clk 0:02:42.4]} 10... Bg4 {[%clk 0:02:54.4]} 11. c3
{[%clk 0:02:41.3]} 11... h6 {[%clk 0:02:48.3]} 12. h3 {[%clk 0:02:40.5]} 12...
Bh5 {[%clk 0:02:47]} 13. Be2 {[%clk 0:02:35.3]} 13... Qd6 {[%clk 0:02:45.5]} 14.
Nfd4 {[%clk 0:02:29.8]} 14... Bxe2 {[%clk 0:02:43]} 15. Rxe2 {[%clk 0:02:29.8]}
15... Rfe8 {[%clk 0:02:40.9]} 16. Be3 {[%clk 0:02:27]} 16... Ne4 {[%clk
0:02:37.7]} 17. Nf5 {[%clk 0:02:04.8]} 17... Qe5 {[%clk 0:02:30.6]} 18. Bxb6
{[%clk 0:02:02.5]} 18... Qxf5 {[%clk 0:02:21.8]} 19. Be3 {[%clk 0:01:59.5]}
19... Rad8 {[%clk 0:02:19.7]} 20. Nd4 {[%clk 0:01:58.8]} 20... Nxd4 {[%clk
0:02:18.7]} 21. Qxd4 {[%clk 0:01:54.5]} 21... a6 {[%clk 0:02:16.7]} 22. Rd1
{[%clk 0:01:53.3]} 22... Nf6 {[%clk 0:02:16.3]} 23. Red2 {[%clk 0:01:49.9]}
23... Re4 {[%clk 0:02:14.7]} 24. Qb6 {[%clk 0:01:47.6]} 24... Rd7 {[%clk
0:02:10.7]} 25. Qb3 {[%clk 0:01:40.5]} 25... Kh7 {[%clk 0:02:07.8]} 26. Bd4
{[%clk 0:01:40.2]} 26... Nh5 {[%clk 0:01:58.2]} 27. g4 {[%clk 0:01:26]} 27...
Qe6 {[%clk 0:01:34.5]} 28. Qb6 {[%clk 0:00:54]} 28... Rd6 {[%clk 0:01:25.6]} 29.
Qc7 {[%clk 0:00:53.1]} 29... Nf4 {[%clk 0:01:22]} 30. f3 {[%clk 0:00:27.6]}
30... Nxh3+ {[%clk 0:01:07.6]} 31. Kh2 {[%clk 0:00:26.1]} 31... Rc6 {[%clk
0:00:58.9]} 32. Qg3 {[%clk 0:00:24.8]} 32... Re2+ {[%clk 0:00:42.8]} 33. Kxh3
{[%clk 0:00:23.7]} 33... Rxd2 {[%clk 0:00:41.7]} 34. Rxd2 {[%clk 0:00:24.6]}
34... Qg6 {[%clk 0:00:39.8]} 35. Qe5 {[%clk 0:00:24.5]} 35... Rf6 {[%clk
0:00:38]} 36. Kg3 {[%clk 0:00:23.6]} 36... Qb1 {[%clk 0:00:36]} 37. Qxd5 {[%clk
0:00:21.6]} 37... Qe1+ {[%clk 0:00:24.5]} 38. Bf2 {[%clk 0:00:19.5]} 38... Qc1
{[%clk 0:00:20]} 39. Qe4+ {[%clk 0:00:19.5]} 39... g6 {[%clk 0:00:18.8]} 40. Rd8
{[%clk 0:00:19.9]} 40... Qxb2 {[%clk 0:00:13]} 41. Bd4 {[%clk 0:00:19.7]} 41...
Re6 {[%clk 0:00:10.3]} 42. Rh8# {[%clk 0:00:18.2]} 1-0

[Event "*** Titled Tuesday Blitz"]
[Site "Chess.com"]
[Date "2021.03.30"]
[Round "8"]
[White "sorrm8thatscheckm8"]
[Black "anasta10"]
[Result "1-0"]
[WhiteElo "2627"]
[BlackElo "2499"]
[TimeControl "180+1"]
[EndTime "11:28:55 PDT"]
[Termination "sorrm8thatscheckm8 won by resignation"]

1. d4 {[%clk 0:03:00.9]} 1... Nf6 {[%clk 0:02:52.7]} 2. c4 {[%clk 0:03:00.7]}
2... g6 {[%clk 0:02:52.9]} 3. g3 {[%clk 0:03:00.6]} 3... d5 {[%clk 0:02:53.3]}
4. cxd5 {[%clk 0:03:00]} 4... Nxd5 {[%clk 0:02:54.2]} 5. Bg2 {[%clk 0:03:00]}
5... Bg7 {[%clk 0:02:54.3]} 6. e4 {[%clk 0:03:00.3]} 6... Nb6 {[%clk 0:02:54.4]}
7. Ne2 {[%clk 0:03:00.9]} 7... O-O {[%clk 0:02:55]} 8. O-O {[%clk 0:03:01.4]}
8... Nc6 {[%clk 0:02:53.1]} 9. d5 {[%clk 0:02:58.2]} 9... Na5 {[%clk 0:02:53]}
10. Nbc3 {[%clk 0:02:56.3]} 10... c6 {[%clk 0:02:52.4]} 11. Bf4 {[%clk 0:02:43]}
11... cxd5 {[%clk 0:02:51.6]} 12. exd5 {[%clk 0:02:43.2]} 12... Nac4 {[%clk
0:02:52.2]} 13. Qc2 {[%clk 0:02:40.1]} 13... Bf5 {[%clk 0:02:51.1]} 14. Qb3
{[%clk 0:02:34.3]} 14... Rc8 {[%clk 0:02:49.5]} 15. Rad1 {[%clk 0:02:22.4]}
15... Qd7 {[%clk 0:02:45.7]} 16. Nd4 {[%clk 0:02:10.8]} 16... Bh3 {[%clk
0:02:38.6]} 17. Rfe1 {[%clk 0:01:53.7]} 17... Bxg2 {[%clk 0:02:36.6]} 18. Kxg2
{[%clk 0:01:53.7]} 18... Nxd5 {[%clk 0:02:22.8]} 19. Nxd5 {[%clk 0:01:36.5]}
19... Qxd5+ {[%clk 0:02:21.2]} 20. Nf3 {[%clk 0:01:36.7]} 20... Qc6 {[%clk
0:01:57.1]} 21. Rxe7 {[%clk 0:01:36.5]} 21... Bf6 {[%clk 0:01:14.4]} 22. Red7
{[%clk 0:01:13.4]} 22... Rfd8 {[%clk 0:00:53.3]} 23. Rxd8+ {[%clk 0:01:06.5]}
23... Rxd8 {[%clk 0:00:54.2]} 24. Rxd8+ {[%clk 0:01:03.8]} 24... Bxd8 {[%clk
0:00:55.1]} 25. Qd3 {[%clk 0:00:59.4]} 25... Bf6 {[%clk 0:00:52.1]} 26. b3
{[%clk 0:00:58]} 26... Nb2 {[%clk 0:00:41.2]} 27. Qd2 {[%clk 0:00:54.8]} 27...
h5 {[%clk 0:00:20.9]} 28. h4 {[%clk 0:00:52.5]} 28... b6 {[%clk 0:00:20.5]} 29.
Bg5 {[%clk 0:00:48.2]} 29... Bg7 {[%clk 0:00:17.1]} 30. Qd8+ {[%clk 0:00:40.9]}
30... Kh7 {[%clk 0:00:17]} 31. Be3 {[%clk 0:00:38]} 31... a5 {[%clk 0:00:12.7]}
32. Bxb6 {[%clk 0:00:34.9]} 32... a4 {[%clk 0:00:11.8]} 33. Bd4 {[%clk
0:00:33.5]} 33... axb3 {[%clk 0:00:06.7]} 34. axb3 {[%clk 0:00:31.9]} 34... Nd3
{[%clk 0:00:05.3]} 35. Bxg7 {[%clk 0:00:29.4]} 35... Ne1+ {[%clk 0:00:05.4]} 36.
Kf1 {[%clk 0:00:26.4]} 36... Qb5+ {[%clk 0:00:03]} 37. Kxe1 {[%clk 0:00:23.4]}
37... Qb4+ {[%clk 0:00:03.5]} 38. Kf1 {[%clk 0:00:18.6]} 38... Qb5+ {[%clk
0:00:03.3]} 39. Kg2 {[%clk 0:00:18.2]} 1-0